[Event "Titled Tuesday Blitz March 15 Early 2022"]
[White "Miszler, Levente"]
[Black "Hamitevici, Vladimir"]
[WhiteFideId "763276"]
[BlackFideId "13902393"]
[WhiteElo "1966"]
[BlackElo "2359"]
[Result "0-1"]
[Round "03"]
[TimeControl "180+1"]
[Date "2022.03.15"]
[WhiteClock "0:00:14"]
[BlackClock "0:00:23"]

1. Nf3 {[%clk 0:02:54]}  d5 {[%clk 0:02:59]} 2. d4 {[%clk 0:02:51]}  g6 {[%clk 0:02:59]} 3. c4 {[%clk 0:02:47]}  dxc4 {[%clk 0:02:59]} 4. e3 {[%clk 0:02:46]}  Bg7 {[%clk 0:02:58]} 5. Bxc4 {[%clk 0:02:47]}  Nf6 {[%clk 0:02:59]} 6. O-O {[%clk 0:02:45]}  O-O {[%clk 0:03:00]} 7. b3 {[%clk 0:02:45]}  b6 {[%clk 0:03:00]} 8. Bb2 {[%clk 0:02:45]}  Bb7 {[%clk 0:03:00]} 9. Nc3 {[%clk 0:02:42]}  Nbd7 {[%clk 0:02:58]} 10. Qe2 {[%clk 0:02:37]}  Ne4 {[%clk 0:02:48]} 11. Ba6 {[%clk 0:02:28]}  Nxc3 {[%clk 0:02:47]} 12. Bxc3 {[%clk 0:02:29]}  Qc8 {[%clk 0:02:40]} 13. Bxb7 {[%clk 0:02:28]}  Qxb7 {[%clk 0:02:41]} 14. Rac1 {[%clk 0:02:28]}  Rfe8 {[%clk 0:02:34]} 15. Rfd1 {[%clk 0:02:27]}  a5 {[%clk 0:02:26]} 16. Qb2 {[%clk 0:02:22]}  a4 {[%clk 0:02:24]} 17. d5 {[%clk 0:02:22]}  Bxc3 {[%clk 0:01:55]} 18. Qxc3 {[%clk 0:02:20]}  Rec8 {[%clk 0:01:55]} 19. Ne5 {[%clk 0:02:16]}  Nf6 {[%clk 0:01:40]} 20. Nc6 {[%clk 0:02:12]}  Re8 {[%clk 0:01:36]} 21. Nxe7+ {[%clk 0:02:09]}  Rxe7 {[%clk 0:01:37]} 22. Qxf6 {[%clk 0:02:09]}  Rd7 {[%clk 0:01:37]} 23. e4 {[%clk 0:01:55]}  Re8 {[%clk 0:01:37]} 24. Qd4 {[%clk 0:01:50]}  axb3 {[%clk 0:01:37]} 25. axb3 {[%clk 0:01:50]}  Qa8 {[%clk 0:01:27]} 26. f3 {[%clk 0:01:48]}  c5 {[%clk 0:01:25]} 27. Qc4 {[%clk 0:01:42]}  Qb8 {[%clk 0:01:23]} 28. b4 {[%clk 0:01:39]}  cxb4 {[%clk 0:01:17]} 29. Qxb4 {[%clk 0:01:37]}  f5 {[%clk 0:01:18]} 30. Rc6 {[%clk 0:01:32]}  fxe4 {[%clk 0:01:16]} 31. fxe4 {[%clk 0:01:33]}  Qf4 {[%clk 0:01:14]} 32. Re1 {[%clk 0:01:01]}  Rf7 {[%clk 0:01:02]} 33. Rc2 {[%clk 0:00:35]}  Re5 {[%clk 0:00:37]} 34. Qd2 {[%clk 0:00:32]}  Rxe4 {[%clk 0:00:31]} 35. Rc8+ {[%clk 0:00:19]}  Kg7 {[%clk 0:00:27]} 36. Qb2+ {[%clk 0:00:19]}  Kh6 {[%clk 0:00:24]} 37. Rd1 {[%clk 0:00:18]}  Qe3+ {[%clk 0:00:22]} 38. Kh1 {[%clk 0:00:14]}  Qe1+ {[%clk 0:00:23]} 0-1


[Site "https://www.chess.com"]

[Event "Titled Tuesday Blitz March 15 Early 2022"]
[White "Myshakov, Fyodor"]
[Black "Araujo Filho, Luiz Antonio Coel"]
[WhiteFideId "14111284"]
[BlackFideId "2130661"]
[WhiteElo "2310"]
[BlackElo "2182"]
[Result "0-1"]
[Round "03"]
[TimeControl "180+1"]
[Date "2022.03.15"]
[WhiteClock "0:00:12"]
[BlackClock "0:00:03"]

1. c4 {[%clk 0:02:59]}  f5 {[%clk 0:02:59]} 2. Nc3 {[%clk 0:02:58]}  Nf6 {[%clk 0:03:00]} 3. Nf3 {[%clk 0:02:58]}  g6 {[%clk 0:03:00]} 4. g3 {[%clk 0:02:56]}  Bg7 {[%clk 0:03:00]} 5. Bg2 {[%clk 0:02:56]}  O-O {[%clk 0:02:59]} 6. O-O {[%clk 0:02:57]}  d6 {[%clk 0:02:58]} 7. d4 {[%clk 0:02:54]}  Nc6 {[%clk 0:02:56]} 8. d5 {[%clk 0:02:53]}  Na5 {[%clk 0:02:55]} 9. Nd2 {[%clk 0:02:43]}  c5 {[%clk 0:02:19]} 10. dxc6 {[%clk 0:02:41]}  Nxc6 {[%clk 0:02:17]} 11. Nd5 {[%clk 0:02:38]}  Nxd5 {[%clk 0:02:13]} 12. Bxd5+ {[%clk 0:02:38]}  e6 {[%clk 0:02:11]} 13. Bg2 {[%clk 0:02:36]}  e5 {[%clk 0:02:08]} 14. Rb1 {[%clk 0:02:35]}  e4 {[%clk 0:02:04]} 15. Nb3 {[%clk 0:02:24]}  Be6 {[%clk 0:01:45]} 16. c5 {[%clk 0:02:22]}  dxc5 {[%clk 0:01:41]} 17. Nxc5 {[%clk 0:02:14]}  Bxa2 {[%clk 0:01:32]} 18. Ra1 {[%clk 0:02:12]}  Bc4 {[%clk 0:01:09]} 19. Qc2 {[%clk 0:01:55]}  b5 {[%clk 0:01:05]} 20. Rd1 {[%clk 0:01:42]}  Nd4 {[%clk 0:01:02]} 21. Rxd4 {[%clk 0:01:13]}  Qxd4 {[%clk 0:01:01]} 22. Be3 {[%clk 0:01:13]}  Qxb2 {[%clk 0:00:57]} 23. Qxb2 {[%clk 0:01:13]}  Bxb2 {[%clk 0:00:55]} 24. Rb1 {[%clk 0:01:13]}  Bg7 {[%clk 0:00:51]} 25. f3 {[%clk 0:01:11]}  exf3 {[%clk 0:00:43]} 26. Bxf3 {[%clk 0:01:09]}  Rac8 {[%clk 0:00:38]} 27. Nb7 {[%clk 0:00:51]}  Rc7 {[%clk 0:00:32]} 28. Bf4 {[%clk 0:00:48]}  Rd7 {[%clk 0:00:30]} 29. Bc6 {[%clk 0:00:47]}  Re7 {[%clk 0:00:27]} 30. Bd6 {[%clk 0:00:34]}  Bd4+ {[%clk 0:00:23]} 31. Kh1 {[%clk 0:00:30]}  Rxe2 {[%clk 0:00:18]} 32. Bxf8 {[%clk 0:00:28]}  Kxf8 {[%clk 0:00:17]} 33. Nd6 {[%clk 0:00:28]}  Re6 {[%clk 0:00:13]} 34. Nxb5 {[%clk 0:00:22]}  Bb6 {[%clk 0:00:07]} 35. Bf3 {[%clk 0:00:15]}  Bd3 {[%clk 0:00:05]} 36. Rb3 {[%clk 0:00:12]}  Re1+ {[%clk 0:00:03]} 0-1


[Site "https://www.chess.com"]

[Event "Titled Tuesday Blitz March 15 Early 2022"]
[White "Nakamura, Hikaru"]
[Black "Gareyev, Timur"]
[WhiteFideId "2016192"]
[BlackFideId "14200937"]
[WhiteElo "2850"]
[BlackElo "2582"]
[Result "1-0"]
[Round "03"]
[TimeControl "180+1"]
[Date "2022.03.15"]
[WhiteClock "0:00:12"]
[BlackClock "0:00:01"]

1. Nf3 {[%clk 0:02:50]}  d6 {[%clk 0:02:44]} 2. d4 {[%clk 0:02:39]}  Nf6 {[%clk 0:02:43]} 3. Nc3 {[%clk 0:02:38]}  Bf5 {[%clk 0:02:41]} 4. g3 {[%clk 0:02:38]}  c6 {[%clk 0:02:40]} 5. Bg2 {[%clk 0:02:38]}  Qc8 {[%clk 0:02:22]} 6. h3 {[%clk 0:02:35]}  Ne4 {[%clk 0:02:09]} 7. Nd2 {[%clk 0:02:26]}  Nxd2 {[%clk 0:01:59]} 8. Bxd2 {[%clk 0:02:24]}  e5 {[%clk 0:02:00]} 9. e4 {[%clk 0:02:22]}  Bd7 {[%clk 0:01:53]} 10. Be3 {[%clk 0:02:16]}  Be7 {[%clk 0:01:53]} 11. Qh5 {[%clk 0:02:13]}  g6 {[%clk 0:01:37]} 12. Qe2 {[%clk 0:02:09]}  Na6 {[%clk 0:01:29]} 13. O-O-O {[%clk 0:02:07]}  Qc7 {[%clk 0:01:28]} 14. f4 {[%clk 0:02:06]}  Qa5 {[%clk 0:01:10]} 15. Kb1 {[%clk 0:02:05]}  Nc7 {[%clk 0:01:08]} 16. Qf2 {[%clk 0:01:53]}  Be6 {[%clk 0:01:00]} 17. Bd2 {[%clk 0:01:11]}  Qb6 {[%clk 0:00:54]} 18. f5 {[%clk 0:01:11]}  Bc4 {[%clk 0:00:49]} 19. Na4 {[%clk 0:00:51]}  Qa6 {[%clk 0:00:44]} 20. b3 {[%clk 0:00:51]}  Nb5 {[%clk 0:00:41]} 21. Bc1 {[%clk 0:00:43]}  Be2 {[%clk 0:00:32]} 22. Rd2 {[%clk 0:00:35]}  Nxd4 {[%clk 0:00:33]} 23. Bb2 {[%clk 0:00:35]}  Bb5 {[%clk 0:00:31]} 24. Bxd4 {[%clk 0:00:31]}  exd4 {[%clk 0:00:31]} 25. Qxd4 {[%clk 0:00:32]}  O-O-O {[%clk 0:00:24]} 26. Nc3 {[%clk 0:00:32]}  Bg5 {[%clk 0:00:23]} 27. a4 {[%clk 0:00:30]}  Bxd2 {[%clk 0:00:21]} 28. Qxd2 {[%clk 0:00:31]}  Bc4 {[%clk 0:00:20]} 29. Qd4 {[%clk 0:00:31]}  d5 {[%clk 0:00:17]} 30. bxc4 {[%clk 0:00:29]}  dxc4 {[%clk 0:00:17]} 31. Qc5 {[%clk 0:00:29]}  Rd2 {[%clk 0:00:17]} 32. Bf1 {[%clk 0:00:29]}  b5 {[%clk 0:00:15]} 33. axb5 {[%clk 0:00:27]}  Qa5 {[%clk 0:00:15]} 34. Qxc4 {[%clk 0:00:23]}  Rhd8 {[%clk 0:00:15]} 35. Bd3 {[%clk 0:00:15]}  R8xd3 {[%clk 0:00:16]} 36. cxd3 {[%clk 0:00:14]}  Qa3 {[%clk 0:00:16]} 37. Na4 {[%clk 0:00:15]}  Rxd3 {[%clk 0:00:14]} 38. Qxc6+ {[%clk 0:00:11]}  Kb8 {[%clk 0:00:14]} 39. Nb2 {[%clk 0:00:11]}  Rd2 {[%clk 0:00:10]} 40. Qe8+ {[%clk 0:00:09]}  Kb7 {[%clk 0:00:10]} 41. Qxf7+ {[%clk 0:00:10]}  Kb8 {[%clk 0:00:08]} 42. Qg8+ {[%clk 0:00:10]}  Kb7 {[%clk 0:00:07]} 43. Qxh7+ {[%clk 0:00:11]}  Kb8 {[%clk 0:00:04]} 44. Qh8+ {[%clk 0:00:11]}  Kb7 {[%clk 0:00:03]} 45. Rc1 {[%clk 0:00:11]}  Rxb2+ {[%clk 0:00:01]} 46. Qxb2 {[%clk 0:00:11]}  Qd3+ {[%clk 0:00:02]} 47. Qc2 {[%clk 0:00:12]}  Qb3+ {[%clk 0:00:01]} 48. Qxb3 {[%clk 0:00:12]} 1-0


[Site "https://www.chess.com"]

[Event "Titled Tuesday Blitz March 15 Early 2022"]
[White "Omariev, Maksim"]
[Black "Fernandez Guillen, Ernesto J."]
[WhiteFideId "4193423"]
[BlackFideId "3512428"]
[WhiteElo "2462"]
[BlackElo "2380"]
[Result "0-1"]
[Round "03"]
[TimeControl "180+1"]
[Date "2022.03.15"]
[WhiteClock "0:00:02"]
[BlackClock "0:00:12"]

1. g4 {[%clk 0:02:57]}  d5 {[%clk 0:02:59]} 2. Bg2 {[%clk 0:02:55]}  Bxg4 {[%clk 0:02:56]} 3. c4 {[%clk 0:02:52]}  Be6 {[%clk 0:02:52]} 4. Qb3 {[%clk 0:02:27]}  Qc8 {[%clk 0:02:51]} 5. cxd5 {[%clk 0:02:24]}  Bd7 {[%clk 0:02:50]} 6. Nc3 {[%clk 0:02:21]}  Nf6 {[%clk 0:02:47]} 7. e4 {[%clk 0:02:06]}  c6 {[%clk 0:02:42]} 8. e5 {[%clk 0:01:44]}  Nh5 {[%clk 0:02:26]} 9. Nge2 {[%clk 0:01:32]}  e6 {[%clk 0:02:19]} 10. d6 {[%clk 0:01:28]}  g6 {[%clk 0:02:12]} 11. d4 {[%clk 0:01:26]}  Bg7 {[%clk 0:02:09]} 12. Be3 {[%clk 0:01:23]}  O-O {[%clk 0:02:03]} 13. O-O-O {[%clk 0:01:20]}  b6 {[%clk 0:01:53]} 14. Kb1 {[%clk 0:01:19]}  Qd8 {[%clk 0:01:29]} 15. Ne4 {[%clk 0:01:14]}  f5 {[%clk 0:01:12]} 16. Bg5 {[%clk 0:00:52]}  Qe8 {[%clk 0:01:05]} 17. N4g3 {[%clk 0:00:51]}  h6 {[%clk 0:01:01]} 18. Bd2 {[%clk 0:00:44]}  Nxg3 {[%clk 0:00:48]} 19. hxg3 {[%clk 0:00:44]}  g5 {[%clk 0:00:48]} 20. f4 {[%clk 0:00:42]}  g4 {[%clk 0:00:45]} 21. Rc1 {[%clk 0:00:37]}  Kh7 {[%clk 0:00:38]} 22. Qd3 {[%clk 0:00:17]}  Qd8 {[%clk 0:00:38]} 23. Rh4 {[%clk 0:00:14]}  Kg8 {[%clk 0:00:32]} 24. Rch1 {[%clk 0:00:11]}  a5 {[%clk 0:00:26]} 25. Rxh6 {[%clk 0:00:06]}  Bxh6 {[%clk 0:00:27]} 26. Rxh6 {[%clk 0:00:07]}  Kg7 {[%clk 0:00:28]} 27. Rh1 {[%clk 0:00:06]}  Rh8 {[%clk 0:00:28]} 28. Qe3 {[%clk 0:00:05]}  Rxh1+ {[%clk 0:00:27]} 29. Bxh1 {[%clk 0:00:06]}  Qh8 {[%clk 0:00:27]} 30. Qg1 {[%clk 0:00:06]}  Na6 {[%clk 0:00:25]} 31. Bg2 {[%clk 0:00:06]}  Qh5 {[%clk 0:00:24]} 32. Qe3 {[%clk 0:00:05]}  Rh8 {[%clk 0:00:23]} 33. Be1 {[%clk 0:00:05]}  Qh2 {[%clk 0:00:22]} 34. Qf2 {[%clk 0:00:06]}  Nb4 {[%clk 0:00:21]} 35. Bxb4 {[%clk 0:00:05]}  axb4 {[%clk 0:00:22]} 36. Kc2 {[%clk 0:00:03]}  c5 {[%clk 0:00:21]} 37. dxc5 {[%clk 0:00:02]}  bxc5 {[%clk 0:00:22]} 38. b3 {[%clk 0:00:02]}  Bc6 {[%clk 0:00:19]} 39. Qxc5 {[%clk 0:00:01]}  Qxg2 {[%clk 0:00:18]} 40. Kd2 {[%clk 0:00:01]}  Qd5+ {[%clk 0:00:18]} 41. Qxd5 {[%clk 0:00:02]}  Bxd5 {[%clk 0:00:19]} 42. Nd4 {[%clk 0:00:03]}  Ra8 {[%clk 0:00:16]} 43. Nb5 {[%clk 0:00:02]}  Kf7 {[%clk 0:00:15]} 44. Ke3 {[%clk 0:00:03]}  Rxa2 {[%clk 0:00:15]} 45. Nc7 {[%clk 0:00:03]}  Rc2 {[%clk 0:00:14]} 46. Kd4 {[%clk 0:00:03]}  Bb7 {[%clk 0:00:12]} 47. Nb5 {[%clk 0:00:03]}  Ke8 {[%clk 0:00:11]} 48. Kd3 {[%clk 0:00:02]}  Rc1 {[%clk 0:00:11]} 49. Kd2 {[%clk 0:00:02]}  Rc5 {[%clk 0:00:11]} 50. Nd4 {[%clk 0:00:02]}  Kd7 {[%clk 0:00:11]} 51. Ke3 {[%clk 0:00:02]}  Bd5 {[%clk 0:00:12]} 52. Kd3 {[%clk 0:00:02]}  Rc3+ {[%clk 0:00:12]} 53. Kd2 {[%clk 0:00:02]}  Rxg3 {[%clk 0:00:12]} 0-1


[Site "https://www.chess.com"]

[Event "Titled Tuesday Blitz March 15 Early 2022"]
[White "Orlov, Georgi"]
[Black "San, Thit Lwin"]
[WhiteFideId "2011271"]
[BlackFideId "13001272"]
[WhiteElo "2547"]
[BlackElo "2232"]
[Result "1-0"]
[Round "03"]
[TimeControl "180+1"]
[Date "2022.03.15"]
[WhiteClock "0:00:13"]
[BlackClock "0:00:04"]

1. d4 {[%clk 0:03:00]}  Nf6 {[%clk 0:03:00]} 2. Nf3 {[%clk 0:03:00]}  c5 {[%clk 0:03:01]} 3. d5 {[%clk 0:02:59]}  e6 {[%clk 0:03:01]} 4. c4 {[%clk 0:02:59]}  exd5 {[%clk 0:03:02]} 5. cxd5 {[%clk 0:02:59]}  d6 {[%clk 0:03:03]} 6. Nc3 {[%clk 0:02:58]}  g6 {[%clk 0:03:04]} 7. e4 {[%clk 0:02:59]}  Bg7 {[%clk 0:03:05]} 8. Be2 {[%clk 0:02:58]}  O-O {[%clk 0:03:05]} 9. Nd2 {[%clk 0:02:58]}  a6 {[%clk 0:03:06]} 10. a4 {[%clk 0:02:57]}  Nbd7 {[%clk 0:03:03]} 11. O-O {[%clk 0:02:57]}  Qc7 {[%clk 0:03:01]} 12. Qc2 {[%clk 0:02:56]}  Rb8 {[%clk 0:03:00]} 13. Re1 {[%clk 0:02:45]}  Re8 {[%clk 0:02:56]} 14. Nf1 {[%clk 0:02:32]}  c4 {[%clk 0:02:45]} 15. a5 {[%clk 0:02:09]}  Ne5 {[%clk 0:02:10]} 16. Be3 {[%clk 0:02:02]}  h6 {[%clk 0:01:03]} 17. f3 {[%clk 0:01:51]}  g5 {[%clk 0:01:01]} 18. Nd2 {[%clk 0:01:49]}  Bd7 {[%clk 0:00:45]} 19. Na4 {[%clk 0:01:39]}  Bb5 {[%clk 0:00:37]} 20. Nb6 {[%clk 0:01:35]}  Qe7 {[%clk 0:00:36]} 21. Ndxc4 {[%clk 0:01:25]}  Nxc4 {[%clk 0:00:34]} 22. Bxc4 {[%clk 0:01:23]}  Bxc4 {[%clk 0:00:27]} 23. Nxc4 {[%clk 0:01:18]}  Rbc8 {[%clk 0:00:27]} 24. Rab1 {[%clk 0:01:12]}  Nd7 {[%clk 0:00:26]} 25. Qe2 {[%clk 0:01:07]}  Be5 {[%clk 0:00:23]} 26. Rbc1 {[%clk 0:01:03]}  Qd8 {[%clk 0:00:17]} 27. b4 {[%clk 0:01:02]}  Qf6 {[%clk 0:00:16]} 28. Qd2 {[%clk 0:00:59]}  Qg7 {[%clk 0:00:15]} 29. Kh1 {[%clk 0:00:52]}  Nf8 {[%clk 0:00:11]} 30. Nxe5 {[%clk 0:00:49]}  Qxe5 {[%clk 0:00:11]} 31. Bd4 {[%clk 0:00:48]}  Qe7 {[%clk 0:00:11]} 32. Qb2 {[%clk 0:00:30]}  Nd7 {[%clk 0:00:10]} 33. Rxc8 {[%clk 0:00:26]}  Rxc8 {[%clk 0:00:10]} 34. Rc1 {[%clk 0:00:26]}  Re8 {[%clk 0:00:09]} 35. Rc7 {[%clk 0:00:25]}  f5 {[%clk 0:00:09]} 36. exf5 {[%clk 0:00:19]}  Qe1+ {[%clk 0:00:08]} 37. Bg1 {[%clk 0:00:19]}  Ne5 {[%clk 0:00:08]} 38. f6 {[%clk 0:00:18]}  Nf7 {[%clk 0:00:07]} 39. Qd4 {[%clk 0:00:16]}  Qf1 {[%clk 0:00:05]} 40. Re7 {[%clk 0:00:15]}  Rc8 {[%clk 0:00:04]} 41. Qe4 {[%clk 0:00:13]} 1-0


[Site "https://www.chess.com"]

[Event "Titled Tuesday Blitz March 15 Early 2022"]
[White "Ovezdurdyyeva, Jemal"]
[Black "Budrewicz, Krzysztof"]
[WhiteFideId "14001888"]
[BlackFideId "1127950"]
[WhiteElo "1946"]
[BlackElo "2248"]
[Result "0-1"]
[Round "03"]
[TimeControl "180+1"]
[Date "2022.03.15"]
[WhiteClock "0:01:35"]
[BlackClock "0:02:55"]

1. e4 {[%clk 0:01:39]}  g6 {[%clk 0:02:56]} 2. d4 {[%clk 0:01:38]}  Bg7 {[%clk 0:02:57]} 3. Nf3 {[%clk 0:01:38]}  d6 {[%clk 0:02:57]} 4. Be3 {[%clk 0:01:38]}  Nf6 {[%clk 0:02:57]} 5. Bd3 {[%clk 0:01:37]}  O-O {[%clk 0:02:57]} 6. O-O {[%clk 0:01:38]}  Nc6 {[%clk 0:02:57]} 7. Nbd2 {[%clk 0:01:38]}  e5 {[%clk 0:02:57]} 8. d5 {[%clk 0:01:36]}  Ne7 {[%clk 0:02:56]} 9. c4 {[%clk 0:01:36]}  Ng4 {[%clk 0:02:56]} 10. Bg5 {[%clk 0:01:35]}  h6 {[%clk 0:02:56]} 11. Bh4 {[%clk 0:01:35]}  f5 {[%clk 0:02:56]} 12. exf5 {[%clk 0:01:35]}  gxf5 {[%clk 0:02:57]} 13. Bg3 {[%clk 0:01:35]}  e4 {[%clk 0:02:55]} 0-1


[Site "https://www.chess.com"]

[Event "Titled Tuesday Blitz March 15 Early 2022"]
[White "Pajeken, Jakob Leon"]
[Black "Xie, Bryan"]
[WhiteFideId "12942839"]
[BlackFideId "30941296"]
[WhiteElo "2351"]
[BlackElo "1899"]
[Result "1-0"]
[Round "03"]
[TimeControl "180+1"]
[Date "2022.03.15"]
[WhiteClock "0:00:06"]
[BlackClock "0:00:01"]

1. d4 {[%clk 0:03:00]}  Nf6 {[%clk 0:02:59]} 2. Nf3 {[%clk 0:03:00]}  e6 {[%clk 0:02:58]} 3. Bf4 {[%clk 0:03:00]}  b6 {[%clk 0:02:57]} 4. e3 {[%clk 0:02:59]}  Bb7 {[%clk 0:02:57]} 5. Bd3 {[%clk 0:02:57]}  Be7 {[%clk 0:02:57]} 6. h3 {[%clk 0:02:53]}  O-O {[%clk 0:02:57]} 7. c3 {[%clk 0:02:53]}  d5 {[%clk 0:02:56]} 8. Nbd2 {[%clk 0:02:50]}  c5 {[%clk 0:02:55]} 9. Qb1 {[%clk 0:02:49]}  Nbd7 {[%clk 0:02:51]} 10. g4 {[%clk 0:02:48]}  h6 {[%clk 0:02:51]} 11. Rg1 {[%clk 0:02:42]}  cxd4 {[%clk 0:02:47]} 12. exd4 {[%clk 0:02:41]}  Re8 {[%clk 0:02:44]} 13. g5 {[%clk 0:02:40]}  hxg5 {[%clk 0:02:43]} 14. Nxg5 {[%clk 0:02:40]}  Nh5 {[%clk 0:02:19]} 15. Bh7+ {[%clk 0:02:26]}  Kf8 {[%clk 0:02:19]} 16. Nxf7 {[%clk 0:02:26]}  Qc8 {[%clk 0:02:11]} 17. Qg6 {[%clk 0:02:25]}  Ndf6 {[%clk 0:02:06]} 18. Bh6 {[%clk 0:02:09]}  Bd8 {[%clk 0:01:26]} 19. Bxg7+ {[%clk 0:02:01]}  Ke7 {[%clk 0:01:25]} 20. Bxf6+ {[%clk 0:01:56]}  Nxf6 {[%clk 0:01:23]} 21. Ne5 {[%clk 0:01:54]}  Kd6 {[%clk 0:00:49]} 22. c4 {[%clk 0:01:32]}  Ba6 {[%clk 0:00:41]} 23. Rc1 {[%clk 0:01:22]}  Qb7 {[%clk 0:00:30]} 24. c5+ {[%clk 0:01:15]}  bxc5 {[%clk 0:00:27]} 25. Nf7+ {[%clk 0:01:09]}  Ke7 {[%clk 0:00:25]} 26. Nxd8 {[%clk 0:01:07]}  Raxd8 {[%clk 0:00:19]} 27. Qg7+ {[%clk 0:01:06]}  Kd6 {[%clk 0:00:19]} 28. dxc5+ {[%clk 0:01:04]}  Kc6 {[%clk 0:00:18]} 29. Qxf6 {[%clk 0:01:04]}  Qxh7 {[%clk 0:00:18]} 30. Rc3 {[%clk 0:00:37]}  Qh5 {[%clk 0:00:07]} 31. Nf3 {[%clk 0:00:33]}  d4 {[%clk 0:00:04]} 32. Ne5+ {[%clk 0:00:23]}  Kd5 {[%clk 0:00:04]} 33. Nf3 {[%clk 0:00:11]}  dxc3 {[%clk 0:00:03]} 34. Rg5+ {[%clk 0:00:11]}  Qxg5 {[%clk 0:00:03]} 35. Qxg5+ {[%clk 0:00:11]}  Kc6 {[%clk 0:00:03]} 36. bxc3 {[%clk 0:00:11]}  Rd5 {[%clk 0:00:02]} 37. Qe3 {[%clk 0:00:06]}  Red8 {[%clk 0:00:02]} 38. Nd4+ {[%clk 0:00:06]}  Kxc5 {[%clk 0:00:02]} 39. Nxe6+ {[%clk 0:00:05]}  Kc4 {[%clk 0:00:02]} 40. Nxd8 {[%clk 0:00:06]}  Rxd8 {[%clk 0:00:02]} 41. Qe6+ {[%clk 0:00:06]}  Kd3 {[%clk 0:00:01]} 42. Qxa6+ {[%clk 0:00:06]} 1-0


[Site "https://www.chess.com"]

[Event "Titled Tuesday Blitz March 15 Early 2022"]
[White "Popadic, Dragan"]
[Black "Manolache, Marius"]
[WhiteFideId "913650"]
[BlackFideId "1201530"]
[WhiteElo "2222"]
[BlackElo "2389"]
[Result "0-1"]
[Round "03"]
[TimeControl "180+1"]
[Date "2022.03.15"]
[WhiteClock "0:00:01"]
[BlackClock "0:02:14"]

1. e4 {[%clk 0:00:49]}  c5 {[%clk 0:02:57]} 2. Nc3 {[%clk 0:00:48]}  a6 {[%clk 0:02:57]} 3. d3 {[%clk 0:00:47]}  Nc6 {[%clk 0:02:55]} 4. g4 {[%clk 0:00:47]}  d6 {[%clk 0:02:43]} 5. Bg2 {[%clk 0:00:47]}  g6 {[%clk 0:02:42]} 6. Nh3 {[%clk 0:00:47]}  Bg7 {[%clk 0:02:41]} 7. O-O {[%clk 0:00:46]}  Nd4 {[%clk 0:02:39]} 8. f4 {[%clk 0:00:43]}  e6 {[%clk 0:02:40]} 9. Ne2 {[%clk 0:00:42]}  Nxe2+ {[%clk 0:02:38]} 10. Qxe2 {[%clk 0:00:41]}  h5 {[%clk 0:02:37]} 11. g5 {[%clk 0:00:40]}  Ne7 {[%clk 0:02:36]} 12. c3 {[%clk 0:00:39]}  Qc7 {[%clk 0:02:35]} 13. Bd2 {[%clk 0:00:38]}  b6 {[%clk 0:02:35]} 14. Rae1 {[%clk 0:00:31]}  Bb7 {[%clk 0:02:33]} 15. Kh1 {[%clk 0:00:25]}  O-O-O {[%clk 0:02:32]} 16. b4 {[%clk 0:00:22]}  Kb8 {[%clk 0:02:30]} 17. Rc1 {[%clk 0:00:20]}  Rc8 {[%clk 0:02:29]} 18. a4 {[%clk 0:00:19]}  Qd7 {[%clk 0:02:28]} 19. a5 {[%clk 0:00:16]}  b5 {[%clk 0:02:28]} 20. c4 {[%clk 0:00:15]}  bxc4 {[%clk 0:02:27]} 21. dxc4 {[%clk 0:00:15]}  cxb4 {[%clk 0:02:27]} 22. Bxb4 {[%clk 0:00:14]}  Bd4 {[%clk 0:02:26]} 23. Rfd1 {[%clk 0:00:11]}  Bc5 {[%clk 0:02:26]} 24. Bc3 {[%clk 0:00:11]}  Rhd8 {[%clk 0:02:25]} 25. Bf6 {[%clk 0:00:10]}  Re8 {[%clk 0:02:25]} 26. Rb1 {[%clk 0:00:09]}  Ka7 {[%clk 0:02:24]} 27. Nf2 {[%clk 0:00:09]}  Nc6 {[%clk 0:02:21]} 28. Nd3 {[%clk 0:00:08]}  Bd4 {[%clk 0:02:20]} 29. Nb4 {[%clk 0:00:05]}  Bxf6 {[%clk 0:02:18]} 30. gxf6 {[%clk 0:00:04]}  Nxb4 {[%clk 0:02:16]} 31. Rxb4 {[%clk 0:00:04]}  Qc6 {[%clk 0:02:14]} 32. Rdb1 {[%clk 0:00:01]}  Rc7 {[%clk 0:02:14]} 0-1


[Site "https://www.chess.com"]

[Event "Titled Tuesday Blitz March 15 Early 2022"]
[White "Quirke, Jeffrey"]
[Black "Demin, Vladimir"]
[WhiteFideId "2013029"]
[BlackFideId "4167457"]
[WhiteElo "2252"]
[BlackElo "2500"]
[Result "0-1"]
[Round "03"]
[TimeControl "180+1"]
[Date "2022.03.15"]
[WhiteClock "0:00:06"]
[BlackClock "0:01:50"]

1. c4 {[%clk 0:02:47]}  Nf6 {[%clk 0:02:59]} 2. g3 {[%clk 0:02:46]}  e6 {[%clk 0:02:59]} 3. Bg2 {[%clk 0:02:44]}  d5 {[%clk 0:03:00]} 4. Nf3 {[%clk 0:02:37]}  Be7 {[%clk 0:02:59]} 5. O-O {[%clk 0:02:37]}  O-O {[%clk 0:02:59]} 6. d4 {[%clk 0:02:37]}  dxc4 {[%clk 0:02:59]} 7. Qc2 {[%clk 0:02:35]}  b5 {[%clk 0:02:45]} 8. a4 {[%clk 0:02:34]}  bxa4 {[%clk 0:02:43]} 9. Nbd2 {[%clk 0:02:29]}  Bb7 {[%clk 0:02:40]} 10. Nxc4 {[%clk 0:02:27]}  c5 {[%clk 0:02:40]} 11. Rd1 {[%clk 0:02:18]}  cxd4 {[%clk 0:02:35]} 12. Be3 {[%clk 0:01:34]}  Nc6 {[%clk 0:02:20]} 13. Nxd4 {[%clk 0:01:33]}  Nxd4 {[%clk 0:02:19]} 14. Rxd4 {[%clk 0:01:33]}  Qc8 {[%clk 0:02:19]} 15. Bxb7 {[%clk 0:01:32]}  Qxb7 {[%clk 0:02:20]} 16. Nd6 {[%clk 0:01:06]}  Bxd6 {[%clk 0:02:17]} 17. Rxd6 {[%clk 0:01:06]}  Nd5 {[%clk 0:02:16]} 18. Bf4 {[%clk 0:00:50]}  Rac8 {[%clk 0:02:14]} 19. Qxa4 {[%clk 0:00:46]}  Qxb2 {[%clk 0:02:11]} 20. Qxa7 {[%clk 0:00:42]}  Qxe2 {[%clk 0:02:04]} 21. Be3 {[%clk 0:00:33]}  Rc2 {[%clk 0:02:01]} 22. Rd7 {[%clk 0:00:27]}  h5 {[%clk 0:01:57]} 23. h4 {[%clk 0:00:26]}  Rc3 {[%clk 0:01:54]} 24. Ra3 {[%clk 0:00:17]}  Nxe3 {[%clk 0:01:50]} 25. fxe3 {[%clk 0:00:06]}  Rc1+ {[%clk 0:01:50]} 0-1


[Site "https://www.chess.com"]